fUSD/lending_fUSD_20250205
["ID","MTS","AMOUNT","RATE_DAILY","PERIOD"]
[351793381,1738789840614,-436.79,9.246e-05,2]
[351793383,1738789840623,-500.0,9.246e-05,2]
[351793385,1738789840632,-500.0,9.246e-05,2]
[351793387,1738789840641,-639.46,9.246e-05,2]
[351793389,1738789840651,-500.0,9.246e-05,2]
[351793391,1738789840661,-500.0,9.246e-05,2]
[351793393,1738789840670,-500.0,9.246e-05,2]
[351793395,1738789840680,-368.43947168,9.246e-05,2]
[351793397,1738789840690,-500.0,9.246e-05,2]
[351793399,1738789840699,-248.39,9.246e-05,2]
[351793401,1738789840709,-500.0,9.246e-05,2]
[351793403,1738789840719,-500.0,9.246e-05,2]
[351793405,1738789840729,-500.0,9.246e-05,2]
[351793407,1738789840739,-500.0,9.246e-05,2]
[351793409,1738789840748,-247.48,9.246e-05,2]
[351793411,1738789840759,-500.0,9.246e-05,2]
[351793414,1738789840769,-569.44,9.246e-05,2]
[351793415,1738789840778,-259.35,9.246e-05,2]
[351793417,1738789840788,-500.0,9.246e-05,2]
[351793419,1738789840798,-500.0,9.246e-05,2]
[351793421,1738789840808,-585.36,9.246e-05,2]
[351793423,1738789840818,-500.0,9.246e-05,2]
[351793425,1738789840828,-500.0,9.246e-05,2]
[351793427,1738789840838,-500.0,9.246e-05,2]
[351793429,1738789840848,-1667.38,9.246e-05,2]
[351793431,1738789840858,-500.0,9.246e-05,2]
[351793433,1738789840868,-500.0,9.246e-05,2]
[351793435,1738789840877,-500.0,9.246e-05,2]
[351793437,1738789840887,-500.0,9.246e-05,2]
[351793439,1738789840896,-500.0,9.246e-05,2]
[351793441,1738789840906,-548.85060866,9.246e-05,2]
[351793443,1738789840916,-411.2,9.246e-05,2]
[351793445,1738789840926,-646.31,9.246e-05,2]
[351793447,1738789840936,-500.0,9.246e-05,2]
[351793449,1738789840945,-500.0,9.246e-05,2]
[351793451,1738789840955,-500.0,9.246e-05,2]
[351793453,1738789840965,-500.0,9.246e-05,2]
[351793455,1738789840975,-500.0,9.246e-05,2]
[351793457,1738789840985,-571.75,9.246e-05,2]
[351793459,1738789840996,-625.06,9.246e-05,2]
[351793461,1738789841008,-500.0,9.246e-05,2]
[351793463,1738789841017,-500.0,9.246e-05,2]
[351793465,1738789841027,-500.0,9.246e-05,2]
[351793467,1738789841036,-500.0,9.246e-05,2]
[351793469,1738789841045,-500.0,9.246e-05,2]
[351793471,1738789841055,-532.76,9.246e-05,2]
[351793473,1738789841064,-500.0,9.246e-05,2]
[351793474,1738789841074,-500.0,9.246e-05,2]
[351793476,1738789841084,-500.0,9.246e-05,2]
[351793479,1738789841095,-500.0,9.246e-05,2]
[351793480,1738789841104,-500.0,9.246e-05,2]
[351793482,1738789841114,-500.0,9.246e-05,2]
[351793484,1738789841125,-377.36,9.246e-05,2]
[351793486,1738789841135,-500.0,9.246e-05,2]
[351793488,1738789841145,-252.1,9.246e-05,2]
[351793490,1738789841154,-500.0,9.246e-05,2]
[351793492,1738789841164,-500.0,9.246e-05,2]
[351793494,1738789841174,-500.0,9.246e-05,2]
[351793496,1738789841183,-500.0,9.246e-05,2]
[351793498,1738789841193,-572.59,9.246e-05,2]
[351793500,1738789841203,-500.0,9.246e-05,2]
[351793502,1738789841212,-500.0,9.246e-05,2]
[351793504,1738789841222,-500.0,9.246e-05,2]
[351793506,1738789841231,-500.0,9.246e-05,2]
[351793508,1738789841240,-1000.0,9.28e-05,2]
[351793510,1738789841249,-162.66,9.292e-05,2]
[351793512,1738789841260,-183.968,9.292e-05,2]
[351793514,1738789841270,-183.968,9.292e-05,2]
[351793516,1738789841280,-183.968,9.292e-05,2]
[351793518,1738789841293,-183.968,9.292e-05,2]
[351793520,1738789841303,-500.0,9.382e-05,2]
[351793522,1738789841314,-479.3,9.382e-05,2]
[351793524,1738789841326,-500.0,9.382e-05,2]
[351793526,1738789841337,-500.0,9.383e-05,2]
[351793528,1738789841347,-500.0,9.383e-05,2]
[351793530,1738789841357,-500.0,9.383e-05,2]
[351793532,1738789841367,-500.0,9.383e-05,2]
[351793534,1738789841377,-500.0,9.383e-05,2]
[351793536,1738789841387,-500.0,9.383e-05,2]
[351793538,1738789841396,-500.0,9.383e-05,2]
[351793539,1738789841406,-500.0,9.383e-05,2]
[351793541,1738789841415,-500.0,9.383e-05,2]
[351793543,1738789841425,-500.0,9.383e-05,2]
[351793545,1738789841434,-500.0,9.383e-05,2]
[351793547,1738789841443,-500.0,9.383e-05,2]
[351793549,1738789841453,-500.0,9.383e-05,2]
[351793551,1738789841462,-500.0,9.383e-05,2]
[351793553,1738789841472,-243.78,9.383e-05,2]
[351793555,1738789841481,-200.72,9.383e-05,2]
[351793557,1738789841491,-500.0,9.383e-05,2]
[351793559,1738789841501,-500.0,9.383e-05,2]
[351793561,1738789841513,-500.0,9.383e-05,2]
[351793563,1738789841522,-1667.38,9.383e-05,2]
[351793565,1738789841532,-500.0,9.383e-05,2]
[351793567,1738789841541,-500.0,9.383e-05,2]
[351793569,1738789841551,-500.0,9.383e-05,2]
[351793571,1738789841560,-500.0,9.383e-05,2]
[351793578,1738789841614,-500.0,9.383e-05,2]
[351793580,1738789841623,-500.0,9.383e-05,2]
[351793582,1738789841633,-607.21,9.383e-05,2]
[351793584,1738789841642,-500.0,9.383e-05,2]
[351793586,1738789841651,-500.0,9.383e-05,2]
[351793588,1738789841660,-500.0,9.383e-05,2]
[351793590,1738789841669,-500.0,9.383e-05,2]
[351793592,1738789841679,-500.0,9.383e-05,2]
[351793594,1738789841689,-500.0,9.383e-05,2]
[351793596,1738789841698,-500.0,9.383e-05,2]
[351793598,1738789841707,-303.92,9.383e-05,2]
[351793600,1738789841717,-500.0,9.383e-05,2]
[351793602,1738789841727,-500.0,9.383e-05,2]
[351793604,1738789841737,-500.0,9.383e-05,2]
[351793606,1738789841746,-500.0,9.383e-05,2]
[351793608,1738789841757,-500.0,9.383e-05,2]
[351793610,1738789841767,-500.0,9.383e-05,2]
[351793612,1738789841776,-500.0,9.383e-05,2]
[351793614,1738789841785,-500.0,9.383e-05,2]
[351793616,1738789841795,-500.0,9.383e-05,2]
[351793618,1738789841804,-500.0,9.383e-05,2]
[351793619,1738789841813,-572.59,9.383e-05,2]
[351793621,1738789841822,-500.0,9.383e-05,2]
[351793623,1738789841831,-500.0,9.383e-05,2]
[351793625,1738789841840,-500.0,9.383e-05,2]
[351793627,1738789841849,-500.0,9.383e-05,2]
[351793629,1738789841859,-500.0,9.519e-05,2]
[351793631,1738789841867,-500.0,9.519e-05,2]
[351793633,1738789841877,-500.0,9.52e-05,2]
[351793635,1738789841886,-500.0,9.52e-05,2]
[351793637,1738789841895,-316.55,9.52e-05,2]
[351793639,1738789841904,-271.2,9.52e-05,2]
[351793641,1738789841914,-500.0,9.52e-05,2]
[351793643,1738789841923,-289.39,9.52e-05,2]
[351793645,1738789841932,-500.0,9.52e-05,2]
[351793647,1738789841941,-500.0,9.52e-05,2]
[351793649,1738789841950,-500.0,9.52e-05,2]
[351793651,1738789841959,-209.13,9.52e-05,2]
[351793653,1738789841969,-500.0,9.52e-05,2]
[351793655,1738789841979,-500.0,9.52e-05,2]
[351793657,1738789841989,-500.0,9.52e-05,2]
[351793659,1738789841999,-500.0,9.52e-05,2]
[351793661,1738789842010,-500.0,9.52e-05,2]
[351793663,1738789842019,-500.0,9.52e-05,2]
[351793665,1738789842027,-500.0,9.52e-05,2]
[351793667,1738789842037,-1667.38,9.52e-05,2]
[351793669,1738789842046,-500.0,9.52e-05,2]
[351793671,1738789842055,-500.0,9.52e-05,2]
[351793673,1738789842064,-500.0,9.52e-05,2]
[351793675,1738789842073,-500.0,9.52e-05,2]
[351793676,1738789842083,-500.0,9.52e-05,2]
[351793678,1738789842092,-500.0,9.52e-05,2]
[351793681,1738789842101,-265.95,9.52e-05,2]
[351793682,1738789842111,-500.0,9.52e-05,2]
[351793684,1738789842120,-500.0,9.52e-05,2]
[351793686,1738789842128,-500.0,9.52e-05,2]
[351793688,1738789842137,-500.0,9.52e-05,2]
[351793690,1738789842146,-500.0,9.52e-05,2]
[351793692,1738789842155,-500.0,9.52e-05,2]
[351793694,1738789842172,-500.0,9.52e-05,2]
[351793696,1738789842181,-500.0,9.52e-05,2]
[351793698,1738789842190,-500.0,9.52e-05,2]
[351793700,1738789842199,-500.0,9.52e-05,2]
[351793702,1738789842208,-500.0,9.52e-05,2]
[351793704,1738789842217,-442.26,9.52e-05,2]
[351793706,1738789842226,-500.0,9.52e-05,2]
[351793708,1738789842236,-500.0,9.52e-05,2]
[351793710,1738789842245,-500.0,9.52e-05,2]
[351793712,1738789842255,-500.0,9.52e-05,2]
[351793714,1738789842264,-572.59,9.52e-05,2]
[351793716,1738789842273,-475.25,9.52e-05,2]
[351793718,1738789842284,-500.0,9.52e-05,2]
[351793720,1738789842294,-500.0,9.52e-05,2]
[351793722,1738789842304,-500.0,9.52e-05,2]
[351793724,1738789842313,-590.62,9.567e-05,2]
[351793725,1738789842323,-3209.74,9.567e-05,2]
[351793727,1738789842332,-3209.74,9.57e-05,2]
[351793729,1738789842341,-3209.74,9.572e-05,2]
[351793731,1738789842350,-3209.74,9.575e-05,2]
[351793733,1738789842359,-3209.74,9.577e-05,2]
[351793735,1738789842369,-500.0,9.579e-05,2]
[351793737,1738789842379,-3209.74,9.58e-05,2]
[351793739,1738789842389,-176.33,9.582e-05,2]
[351793741,1738789842399,-3209.74,9.582e-05,2]
[351793743,1738789842409,-3209.74,9.585e-05,2]
[351793745,1738789842418,-3209.74,9.587e-05,2]
[351793747,1738789842426,-250.0,9.589e-05,2]
[351793749,1738789842435,-3209.74,9.59e-05,2]
[351793751,1738789842444,-3209.74,9.592e-05,2]
[351793753,1738789842453,-3209.74,9.595e-05,2]
[351793755,1738789842462,-3209.74,9.598e-05,2]
[351793757,1738789842471,-3209.74,9.6e-05,2]
[351793759,1738789842480,-2510.87512555,9.603e-05,2]
[351793761,1738789842493,-698.86487445,9.603e-05,2]
[351793763,1738789842504,-3209.74,9.605e-05,2]
[351793765,1738789842512,-419.89296382,9.608e-05,2]
[351793767,1738789842523,-2789.84703618,9.608e-05,2]
[351793769,1738789842532,-500.0,9.609e-05,2]
[351793771,1738789842541,-500.0,9.609e-05,2]
[351793773,1738789842550,-96.07290122,9.609e-05,2]
[351793775,1738789842561,-403.92709878,9.609e-05,2]
[351793777,1738789842570,-500.0,9.609e-05,2]
[351793779,1738789842580,-38.03744723,9.609e-05,2]
[351793781,1738789842590,-461.96255277,9.609e-05,2]
[351793783,1738789842599,-500.0,9.609e-05,2]
[351793785,1738789842608,-500.0,9.609e-05,2]
[351793787,1738789842618,-649.78222721,9.609e-05,2]
[351793789,1738789842626,-461.87278325,9.609e-05,2]
[351793791,1738789842635,-3209.74,9.61e-05,2]
[351793793,1738789842644,-3209.74,9.613e-05,2]
[351793795,1738789842654,-3209.74,9.615e-05,2]
[351793797,1738789842663,-500.0,9.656e-05,2]
[351793799,1738789842671,-500.0,9.656e-05,2]
[351793801,1738789842681,-500.0,9.657e-05,2]
[351793803,1738789842690,-500.0,9.657e-05,2]
[351793805,1738789842699,-500.0,9.657e-05,2]
[351793807,1738789842708,-456.22,9.657e-05,2]
[351793809,1738789842719,-500.0,9.657e-05,2]
[351793811,1738789842728,-500.0,9.657e-05,2]
[351793813,1738789842737,-500.0,9.657e-05,2]
[351793815,1738789842747,-500.0,9.657e-05,2]
[351793817,1738789842757,-499.26676517,9.657e-05,2]
[351793819,1738789842766,-500.0,9.657e-05,2]
[351793821,1738789842775,-511.76,9.657e-05,2]
[351793822,1738789842784,-500.0,9.657e-05,2]
[351793824,1738789842794,-500.0,9.657e-05,2]
[351793826,1738789842803,-1667.38,9.657e-05,2]
[351793828,1738789842812,-606.61,9.657e-05,2]
[351793830,1738789842821,-500.0,9.657e-05,2]
[351793832,1738789842830,-500.0,9.657e-05,2]
[351793834,1738789842839,-500.0,9.657e-05,2]
[351793836,1738789842849,-500.0,9.657e-05,2]
[351793838,1738789842858,-500.0,9.657e-05,2]
[351793840,1738789842867,-500.0,9.657e-05,2]
[351793842,1738789842876,-500.0,9.657e-05,2]
[351793844,1738789842885,-500.0,9.657e-05,2]
[351793846,1738789842895,-500.0,9.657e-05,2]
[351793848,1738789842904,-500.0,9.657e-05,2]
[351793850,1738789842914,-500.0,9.657e-05,2]
[351793852,1738789842923,-500.0,9.657e-05,2]
[351793854,1738789842933,-500.0,9.657e-05,2]
[351793856,1738789842942,-500.0,9.657e-05,2]
[351793858,1738789842951,-500.0,9.657e-05,2]
[351793860,1738789842960,-500.0,9.657e-05,2]
[351793862,1738789842970,-500.0,9.657e-05,2]
[351793864,1738789842979,-500.0,9.657e-05,2]
[351793867,1738789842988,-500.0,9.657e-05,2]
[351793871,1738789842998,-500.0,9.657e-05,2]
[351793874,1738789843008,-572.59,9.657e-05,2]
[351793876,1738789843018,-500.0,9.657e-05,2]
[351793878,1738789843027,-500.0,9.657e-05,2]
[351793880,1738789843036,-500.0,9.657e-05,2]
[351793882,1738789843046,-605.1,9.696e-05,2]
[351793884,1738789843057,-500.0,9.793e-05,2]
[351793886,1738789843068,-500.0,9.793e-05,2]
[351793888,1738789843077,-500.0,9.794e-05,2]
[351793890,1738789843086,-500.0,9.794e-05,2]
[351793892,1738789843095,-500.0,9.794e-05,2]
[351793895,1738789843105,-500.0,9.794e-05,2]
[351793898,1738789843114,-500.0,9.794e-05,2]
[351793900,1738789843123,-500.0,9.794e-05,2]
[351793903,1738789843132,-500.0,9.794e-05,2]
[351793906,1738789843142,-500.0,9.794e-05,2]
[351793909,1738789843151,-500.0,9.794e-05,2]
[351793912,1738789843160,-500.0,9.794e-05,2]
[351793915,1738789843170,-1667.38,9.794e-05,2]
[351793918,1738789843179,-604.26,9.794e-05,2]
[351793921,1738789843188,-500.0,9.794e-05,2]
[351793924,1738789843197,-500.0,9.794e-05,2]
[351793927,1738789843206,-500.0,9.794e-05,2]
[351793930,1738789843215,-500.0,9.794e-05,2]
[351793932,1738789843224,-500.0,9.794e-05,2]
[351793934,1738789843233,-500.0,9.794e-05,2]
[351793936,1738789843242,-500.0,9.794e-05,2]
[351793938,1738789843251,-500.0,9.794e-05,2]
[351793940,1738789843261,-500.0,9.794e-05,2]
[351793942,1738789843271,-500.0,9.794e-05,2]
[351793945,1738789843280,-500.0,9.794e-05,2]
[351793947,1738789843294,-500.0,9.794e-05,2]
[351793949,1738789843303,-500.0,9.794e-05,2]
[351793951,1738789843313,-500.0,9.794e-05,2]
[351793952,1738789843323,-500.0,9.794e-05,2]
[351793953,1738789843332,-500.0,9.794e-05,2]
[351793954,1738789843341,-500.0,9.794e-05,2]
[351793955,1738789843350,-296.36,9.794e-05,2]
[351793956,1738789843360,-500.0,9.794e-05,2]
[351793957,1738789843373,-572.59,9.794e-05,2]
[351793958,1738789843382,-500.0,9.794e-05,2]
[351793959,1738789843391,-353.0,9.794e-05,2]
[351793960,1738789843401,-500.0,9.794e-05,2]
[351793961,1738789843410,-176.44,9.883e-05,2]
[351793962,1738789843419,-500.0,9.93e-05,2]
[351793963,1738789843428,-500.0,9.93e-05,2]
[351793964,1738789843437,-500.0,9.931e-05,2]
[351793965,1738789843446,-610.76,9.931e-05,2]
[351793966,1738789843455,-500.0,9.931e-05,2]
[351793967,1738789843465,-500.0,9.931e-05,2]
[351793969,1738789843474,-500.0,9.931e-05,2]
[351793971,1738789843483,-500.0,9.931e-05,2]
[351793973,1738789843493,-500.0,9.931e-05,2]
[351793975,1738789843502,-500.0,9.931e-05,2]
[351793977,1738789843513,-500.0,9.931e-05,2]
[351793979,1738789843522,-522.52,9.931e-05,2]
[351793981,1738789843531,-1667.38,9.931e-05,2]
[351793983,1738789843542,-500.0,9.931e-05,2]
[351793985,1738789843551,-500.0,9.931e-05,2]
[351793987,1738789843560,-356.26,9.931e-05,2]
[351793989,1738789843570,-500.0,9.931e-05,2]
[351793991,1738789843579,-411.54,9.931e-05,2]
[351793993,1738789843589,-500.0,9.931e-05,2]
[351793995,1738789843598,-500.0,9.931e-05,2]
[351793997,1738789843607,-198.5,9.931e-05,2]
[351793999,1738789843616,-500.0,9.931e-05,2]
[351794001,1738789843627,-500.0,9.931e-05,2]
[351794003,1738789843637,-179.93991244,9.931e-05,2]
[351794005,1738789843646,-500.0,9.931e-05,2]
[351794007,1738789843660,-500.0,9.931e-05,2]
[351794010,1738789843670,-444.14,9.931e-05,2]
[351794013,1738789843683,-500.0,9.931e-05,2]
[351794015,1738789843695,-500.0,9.931e-05,2]
[351794017,1738789843706,-500.0,9.931e-05,2]
[351794019,1738789843716,-572.59,9.931e-05,2]
[351794021,1738789843732,-540.53,9.931e-05,2]
[351794023,1738789843742,-230.38,9.931e-05,2]
[351794025,1738789843752,-500.0,9.931e-05,2]
[351794027,1738789843763,-200.0,9.978e-05,2]
[351794029,1738789843774,-2214.24091157,0.0001,2]
[351794031,1738789843787,-3342.09999,0.0001,2]
[351794034,1738789843809,-500.0,8.835e-05,2]
[351794036,1738789843819,-1563.52084559,0.0001,2]
[351794039,1738789843832,-7960.91580602,0.0001,2]
[351794041,1738789843843,-1945.55950178,0.0001,2]
[351794043,1738789843854,-534.159991,0.0001,2]
[351794045,1738789843866,-934.48265208,0.0001,2]
[351794054,1738789843948,-413.21193929,0.0001,2]
[351794059,1738789843993,-614.72573488,0.0001,2]
[351794061,1738789844006,-62319.08971436,0.0001,2]
[351794063,1738789844016,-200.0,0.0001,3]
[351794065,1738789844027,-500.0,0.00010067,2]
[351794067,1738789844037,-552.95,0.00010067,2]
[351794070,1738789844048,-380.75,0.00010068,2]
[351794071,1738789844058,-500.0,0.00010068,2]
[351794074,1738789844069,-500.0,0.00010068,2]
[351794076,1738789844078,-500.0,0.00010068,2]
[351794078,1738789844088,-500.0,0.00010068,2]
[351794080,1738789844098,-500.0,0.00010068,2]
[351794082,1738789844107,-500.0,0.00010068,2]
[351794084,1738789844117,-541.29299187,0.00010068,2]
[351794086,1738789844127,-500.0,0.00010068,2]
[351794088,1738789844137,-1667.38,0.00010068,2]
[351794090,1738789844147,-163.8,0.00010068,2]
[351794092,1738789844157,-500.0,0.00010068,2]
[351794094,1738789844167,-500.0,0.00010068,2]
[351794096,1738789844176,-248.7273701,0.00010068,2]
[351794098,1738789844186,-500.0,0.00010068,2]
[351794100,1738789844195,-524.05,0.00010068,2]
[351794102,1738789844205,-500.0,0.00010068,2]
[351794104,1738789844214,-500.0,0.00010068,2]
[351794106,1738789844223,-500.0,0.00010068,2]
[351794108,1738789844233,-500.0,0.00010068,2]
[351794110,1738789844242,-500.0,0.00010068,2]
[351794112,1738789844251,-500.0,0.00010068,2]
[351794114,1738789844262,-572.59,0.00010068,2]
[351794116,1738789844272,-500.0,0.00010068,2]
[351794118,1738789844282,-820.96,0.00010137,2]
[351794120,1738789844295,-159.022806,0.00010155,2]
[351794122,1738789844304,-500.0,0.00010164,2]
[351794125,1738789844314,-500.0,0.00010164,2]
[351794126,1738789844324,-500.0,0.00010204,2]
[351794129,1738789844335,-500.0,0.00010205,2]
[351794130,1738789844345,-166.24739578,0.00010205,2]
[351794132,1738789844355,-500.0,0.00010205,2]
[351794134,1738789844366,-500.0,0.00010205,2]
[351794136,1738789844376,-447.96922113,0.00010205,2]
[351794138,1738789844386,-500.0,0.00010205,2]
[351794141,1738789844395,-500.0,0.00010205,2]
[351794143,1738789844405,-1667.38,0.00010205,2]
[351794145,1738789844415,-451.97,0.00010205,2]
[351794146,1738789844425,-374.24721417,0.00010205,2]
[351794149,1738789844435,-500.0,0.00010205,2]
[351794151,1738789844445,-500.0,0.00010205,2]
[351794152,1738789844456,-500.0,0.00010205,2]
[351794155,1738789844466,-500.0,0.00010205,2]
[351794157,1738789844477,-500.0,0.00010205,2]
[351794159,1738789844486,-500.0,0.00010205,2]
[351794161,1738789844496,-500.0,0.00010205,2]
[351794163,1738789844508,-572.59,0.00010205,2]
[351794165,1738789844519,-500.0,0.00010205,2]
[351794167,1738789844529,-500.0,0.00010341,2]
[351794169,1738789844539,-500.0,0.00010342,2]
[351794171,1738789844550,-500.0,0.00010342,2]
[351794173,1738789844560,-500.0,0.00010342,2]
[351794175,1738789844571,-223.90881948,0.00010342,2]
[351794177,1738789844582,-500.0,0.00010342,2]
[351794179,1738789844592,-1667.38,0.00010342,2]
[351794181,1738789844603,-500.0,0.00010342,2]
[351794183,1738789844613,-500.0,0.00010342,2]
[351794185,1738789844623,-500.0,0.00010342,2]
[351794187,1738789844633,-500.0,0.00010342,2]
[351794189,1738789844643,-500.0,0.00010342,2]
[351794191,1738789844653,-500.0,0.00010342,2]
[351794193,1738789844663,-549.59,0.00010342,2]
[351794195,1738789844673,-572.59,0.00010342,2]
[351794197,1738789844684,-503.22966162,0.00010342,2]
[351794199,1738789844694,-774.32,0.00010368,2]
[351794201,1738789844703,-1139.34,0.00010383,2]
[351794203,1738789844714,-1000.0,0.0001044,2]
[351794205,1738789844724,-500.0,0.00010478,2]
[351794208,1738789844734,-500.0,0.00010479,2]
[351794209,1738789844744,-50.20315441,0.00010479,2]
[351794227,1738789844904,-500.0,8.835e-05,2]
[351794229,1738789844914,-486.44412737,8.835e-05,2]
[351794231,1738789844926,-104.76587263,8.835e-05,2]
[351794233,1738789844936,-449.79684559,0.00010479,2]
[351794235,1738789844946,-500.0,0.00010479,2]
[351794237,1738789844955,-478.78553978,0.00010479,2]
[351794239,1738789844967,-21.21446022,0.00010479,2]
[351794241,1738789844977,-533.07450904,0.00010479,2]
[351794243,1738789844989,-692.74999987,0.00010479,2]
[351794246,1738789845003,-441.55549109,0.00010479,2]
[351794248,1738789845014,-500.0,0.00010479,2]
[351794250,1738789845024,-500.0,0.00010479,2]
[351794252,1738789845034,-500.0,0.00010479,2]
[351794254,1738789845043,-500.0,0.00010479,2]
[351794256,1738789845053,-500.0,0.00010479,2]
[351794258,1738789845063,-500.0,0.00010479,2]
[351794260,1738789845072,-572.59,0.00010479,2]
[351794262,1738789845081,-159.022806,0.00010566,2]
[351794264,1738789845091,-220.681265,0.00010566,2]
[351794266,1738789845102,-328.03,0.00010615,2]
[351794268,1738789845112,-500.0,0.00010616,2]
[351794270,1738789845123,-500.0,0.00010616,2]
[351794272,1738789845132,-500.0,0.00010616,2]
[351794274,1738789845142,-500.0,0.00010616,2]
[351794276,1738789845152,-1667.38,0.00010616,2]
[351794278,1738789845161,-500.0,0.00010616,2]
[351794280,1738789845170,-500.0,0.00010616,2]
[351794282,1738789845180,-316.98593057,0.00010616,2]
[351794284,1738789845190,-500.0,0.00010616,2]
[351794286,1738789845199,-500.0,0.00010616,2]
[351794288,1738789845208,-500.0,0.00010616,2]
[351794290,1738789845218,-572.59,0.00010616,2]
[351794292,1738789845227,-500.0,0.00010753,2]
[351794294,1738789845237,-500.0,0.00010753,2]
[351794296,1738789845246,-500.0,0.00010753,2]
[351794298,1738789845256,-500.0,0.00010753,2]
[351794300,1738789845266,-1667.38,0.00010753,2]
[351794302,1738789845276,-500.0,0.00010753,2]
[351794304,1738789845289,-500.0,0.00010753,2]
[351794306,1738789845300,-500.0,0.00010753,2]
[351794307,1738789845310,-500.0,0.00010753,2]
[351794310,1738789845320,-500.0,0.00010753,2]
[351794312,1738789845331,-572.59,0.00010753,2]
[351794314,1738789845340,-150.0,0.000108,2]
[351794316,1738789845350,-150.0,0.000108,2]
[351794318,1738789845360,-159.022806,0.0001084,2]
[351794320,1738789845370,-500.0,0.0001089,2]
[351794322,1738789845381,-500.0,0.0001089,2]
[351794324,1738789845391,-500.0,0.0001089,2]
[351794326,1738789845401,-500.0,0.0001089,2]
[351794328,1738789845411,-1667.38,0.0001089,2]
[351794330,1738789845420,-500.0,0.0001089,2]
[351794332,1738789845430,-225.23,0.0001089,2]
[351794334,1738789845440,-500.0,0.0001089,2]
[351794336,1738789845450,-500.0,0.0001089,2]
[351794338,1738789845460,-500.0,0.0001089,2]
[351794340,1738789845470,-572.59,0.0001089,2]
[351794342,1738789845479,-605.1,0.00010908,2]
[351794344,1738789845489,-176.33,0.00010951,2]
[351794346,1738789845499,-152.0,0.00010964,3]
[351794348,1738789845509,-286.0,0.00011027,2]
[351794350,1738789845519,-500.0,0.00011027,2]
[351794352,1738789845529,-50.56108783,0.00011027,2]
[351794354,1738789845542,-449.43891217,0.00011027,2]
[351794356,1738789845553,-500.0,0.00011027,2]
[351794358,1738789845563,-1667.38,0.00011027,2]
[351794360,1738789845574,-500.0,0.00011027,2]
[351794378,1738789845733,-418.92473175,0.00011027,2]
[351794380,1738789845742,-347.10451519,0.00011027,2]
[351794382,1738789845752,-386.4,0.00011027,2]
[351794384,1738789845764,-572.59,0.00011027,2]
[351794386,1738789845775,-159.022806,0.00011114,2]
[351794388,1738789845784,-500.0,0.00011164,2]
[351794390,1738789845794,-207.43,0.00011164,2]
[351794392,1738789845804,-500.0,0.00011164,2]
[351794394,1738789845814,-1667.38,0.00011164,2]
[351794396,1738789845823,-500.0,0.00011164,2]
[351794398,1738789845833,-572.59,0.00011164,2]
[351794400,1738789845842,-500.0,0.000112,4]
[351794402,1738789845853,-700.0,0.000113,4]
[351794404,1738789845862,-500.0,0.00011301,2]
[351794406,1738789845873,-500.0,0.00011301,2]
[351794408,1738789845882,-1667.38,0.00011301,2]
[351794410,1738789845892,-320.85903489,0.00011301,2]
[351794412,1738789845903,-287.68959036,0.00011301,2]
[351794414,1738789845913,-572.59,0.00011301,2]
[351794416,1738789845923,-1000.0,0.000114,4]
[351794418,1738789845934,-26.07515948,0.00011427,4]
[351794421,1738789845947,-125.92484052,0.00011427,4]
[351794423,1738789845957,-500.0,0.00011438,2]
[351794425,1738789845967,-500.0,0.00011438,2]
[351794427,1738789845977,-1548.74647114,0.00011438,2]
[351794431,1738789845996,-118.63352886,0.00011438,2]